[Event "Titled Tuesday Blitz March 08 Early 2022"]
[White "Fedoseev, Vladimir"]
[Black "Rastbod, Ali"]
[WhiteFideId "24130737"]
[BlackFideId "12567477"]
[WhiteElo "2726"]
[BlackElo "2200"]
[Result "1-0"]
[Round "04"]
[TimeControl "180+1"]
[Date "2022.03.08"]
[WhiteClock "0:00:11"]
[BlackClock "0:00:09"]

1. e4 {[%clk 0:02:29]}  e6 {[%clk 0:02:59]} 2. Nf3 {[%clk 0:02:29]}  d5 {[%clk 0:02:59]} 3. d3 {[%clk 0:02:29]}  Nf6 {[%clk 0:02:55]} 4. Nbd2 {[%clk 0:02:28]}  Nc6 {[%clk 0:02:56]} 5. e5 {[%clk 0:02:27]}  Nd7 {[%clk 0:02:55]} 6. d4 {[%clk 0:02:28]}  f6 {[%clk 0:02:56]} 7. Bb5 {[%clk 0:02:24]}  fxe5 {[%clk 0:02:50]} 8. dxe5 {[%clk 0:02:25]}  a6 {[%clk 0:02:48]} 9. Bxc6 {[%clk 0:02:24]}  bxc6 {[%clk 0:02:49]} 10. Nd4 {[%clk 0:02:16]}  Nxe5 {[%clk 0:02:46]} 11. Qh5+ {[%clk 0:01:52]}  Nf7 {[%clk 0:02:45]} 12. Nxc6 {[%clk 0:01:40]}  Qd6 {[%clk 0:02:44]} 13. Nd4 {[%clk 0:01:39]}  e5 {[%clk 0:02:43]} 14. Nf5 {[%clk 0:01:33]}  Qe6 {[%clk 0:02:15]} 15. Ng3 {[%clk 0:01:30]}  g6 {[%clk 0:02:08]} 16. Qe2 {[%clk 0:01:29]}  Bg7 {[%clk 0:02:06]} 17. c4 {[%clk 0:01:28]}  c6 {[%clk 0:02:05]} 18. Nb3 {[%clk 0:01:27]}  O-O {[%clk 0:02:03]} 19. O-O {[%clk 0:01:26]}  Nd6 {[%clk 0:02:02]} 20. Nc5 {[%clk 0:01:24]}  Qf7 {[%clk 0:01:56]} 21. b3 {[%clk 0:01:22]}  h5 {[%clk 0:01:51]} 22. h4 {[%clk 0:01:00]}  e4 {[%clk 0:01:51]} 23. Bg5 {[%clk 0:00:54]}  Bg4 {[%clk 0:01:45]} 24. Qd2 {[%clk 0:00:53]}  Bxa1 {[%clk 0:01:34]} 25. Rxa1 {[%clk 0:00:51]}  Nf5 {[%clk 0:01:34]} 26. Nxf5 {[%clk 0:00:41]}  Bxf5 {[%clk 0:00:57]} 27. Rc1 {[%clk 0:00:41]}  a5 {[%clk 0:00:54]} 28. Qd4 {[%clk 0:00:41]}  Kh7 {[%clk 0:00:54]} 29. Na4 {[%clk 0:00:32]}  Qa7 {[%clk 0:00:46]} 30. Nc5 {[%clk 0:00:16]}  Qf7 {[%clk 0:00:26]} 31. Rd1 {[%clk 0:00:16]}  Rfc8 {[%clk 0:00:18]} 32. Rd2 {[%clk 0:00:15]}  Rc7 {[%clk 0:00:18]} 33. Bf4 {[%clk 0:00:14]}  Rcc8 {[%clk 0:00:18]} 34. Na4 {[%clk 0:00:12]}  Re8 {[%clk 0:00:16]} 35. Nb6 {[%clk 0:00:12]}  Rad8 {[%clk 0:00:16]} 36. Bg5 {[%clk 0:00:12]}  Rd6 {[%clk 0:00:16]} 37. Qc5 {[%clk 0:00:11]}  Rde6 {[%clk 0:00:11]} 38. cxd5 {[%clk 0:00:11]}  cxd5 {[%clk 0:00:12]} 39. Nxd5 {[%clk 0:00:12]}  e3 {[%clk 0:00:10]} 40. Nxe3 {[%clk 0:00:11]}  Be4 {[%clk 0:00:10]} 41. Qxa5 {[%clk 0:00:10]}  Ba8 {[%clk 0:00:09]} 42. Qb5 {[%clk 0:00:10]}  Bc6 {[%clk 0:00:09]} 43. Qc5 {[%clk 0:00:10]}  Qb7 {[%clk 0:00:06]} 44. Qd4 {[%clk 0:00:09]}  Re4 {[%clk 0:00:04]} 45. Qf6 {[%clk 0:00:09]}  R4e6 {[%clk 0:00:03]} 46. Qf4 {[%clk 0:00:09]}  Re4 {[%clk 0:00:03]} 47. Qg3 {[%clk 0:00:09]}  Rf8 {[%clk 0:00:03]} 48. Kh2 {[%clk 0:00:07]}  Re6 {[%clk 0:00:03]} 49. Nc4 {[%clk 0:00:06]}  Qb8 {[%clk 0:00:03]} 50. Qxb8 {[%clk 0:00:05]}  Rxb8 {[%clk 0:00:04]} 51. f3 {[%clk 0:00:05]}  Bb5 {[%clk 0:00:03]} 52. Nd6 {[%clk 0:00:06]}  Bc6 {[%clk 0:00:02]} 53. Nf7 {[%clk 0:00:06]}  Rb7 {[%clk 0:00:02]} 54. Nd8 {[%clk 0:00:07]}  Rd7 {[%clk 0:00:02]} 55. Rxd7+ {[%clk 0:00:07]}  Bxd7 {[%clk 0:00:03]} 56. Nxe6 {[%clk 0:00:08]}  Bxe6 {[%clk 0:00:04]} 57. Kg3 {[%clk 0:00:08]}  Bf5 {[%clk 0:00:03]} 58. Kf4 {[%clk 0:00:08]}  Bb1 {[%clk 0:00:04]} 59. a3 {[%clk 0:00:08]}  Bc2 {[%clk 0:00:05]} 60. b4 {[%clk 0:00:09]}  Kg7 {[%clk 0:00:06]} 61. Ke5 {[%clk 0:00:10]}  Kf7 {[%clk 0:00:07]} 62. b5 {[%clk 0:00:10]}  Ba4 {[%clk 0:00:08]} 63. b6 {[%clk 0:00:11]}  Bc6 {[%clk 0:00:08]} 64. Kd6 {[%clk 0:00:12]}  Bxf3 {[%clk 0:00:09]} 65. gxf3 {[%clk 0:00:11]} 1-0


[Site "https://www.chess.com"]

[Event "Titled Tuesday Blitz March 08 Early 2022"]
[White "Fernandez Siles, Luis"]
[Black "Pinheiro, Iung Alicio de O."]
[WhiteFideId "2209420"]
[BlackFideId "2104350"]
[WhiteElo "2212"]
[BlackElo "2556"]
[Result "0-1"]
[Round "04"]
[TimeControl "180+1"]
[Date "2022.03.09"]
[WhiteClock "0:00:57"]
[BlackClock "0:01:16"]

1. d4 {[%clk 0:03:00]}  Nf6 {[%clk 0:02:59]} 2. c4 {[%clk 0:03:01]}  g6 {[%clk 0:02:59]} 3. Nc3 {[%clk 0:03:00]}  d5 {[%clk 0:02:59]} 4. cxd5 {[%clk 0:03:00]}  Nxd5 {[%clk 0:03:00]} 5. Bd2 {[%clk 0:03:00]}  Bg7 {[%clk 0:02:59]} 6. e4 {[%clk 0:03:00]}  Nb6 {[%clk 0:02:59]} 7. Be3 {[%clk 0:02:59]}  O-O {[%clk 0:03:00]} 8. Be2 {[%clk 0:02:55]}  Nc6 {[%clk 0:02:54]} 9. Nf3 {[%clk 0:02:55]}  Bg4 {[%clk 0:02:53]} 10. d5 {[%clk 0:02:55]}  Bxf3 {[%clk 0:02:52]} 11. gxf3 {[%clk 0:02:56]}  Na5 {[%clk 0:02:51]} 12. Bd4 {[%clk 0:02:53]}  Qd6 {[%clk 0:02:50]} 13. h4 {[%clk 0:02:25]}  c6 {[%clk 0:02:01]} 14. Bxg7 {[%clk 0:02:02]}  Kxg7 {[%clk 0:02:00]} 15. h5 {[%clk 0:01:59]}  cxd5 {[%clk 0:01:43]} 16. h6+ {[%clk 0:01:59]}  Kg8 {[%clk 0:01:39]} 17. exd5 {[%clk 0:01:52]}  Nac4 {[%clk 0:01:37]} 18. b3 {[%clk 0:01:23]}  Qe5 {[%clk 0:01:31]} 19. Rc1 {[%clk 0:01:19]}  Nd6 {[%clk 0:01:26]} 20. Kf1 {[%clk 0:01:09]}  Rac8 {[%clk 0:01:23]} 21. Qd3 {[%clk 0:00:57]}  Nxd5 {[%clk 0:01:16]} 0-1


[Site "https://www.chess.com"]

[Event "Titled Tuesday Blitz March 08 Early 2022"]
[White "Fier, Alexandr"]
[Black "Bortnyk, Olexandr"]
[WhiteFideId "2107139"]
[BlackFideId "14120828"]
[WhiteElo "2571"]
[BlackElo "2723"]
[Result "0-1"]
[Round "04"]
[TimeControl "180+1"]
[Date "2022.03.08"]
[WhiteClock "0:01:54"]
[BlackClock "0:01:22"]

1. d4 {[%clk 0:03:00]}  d6 {[%clk 0:03:00]} 2. e4 {[%clk 0:02:59]}  Nf6 {[%clk 0:03:00]} 3. Nc3 {[%clk 0:03:00]}  Nbd7 {[%clk 0:03:00]} 4. Nf3 {[%clk 0:02:59]}  e5 {[%clk 0:03:00]} 5. Rg1 {[%clk 0:03:00]}  exd4 {[%clk 0:02:22]} 6. Nxd4 {[%clk 0:02:59]}  Nb6 {[%clk 0:02:23]} 7. g4 {[%clk 0:02:57]}  h6 {[%clk 0:02:21]} 8. h4 {[%clk 0:02:57]}  g6 {[%clk 0:02:16]} 9. g5 {[%clk 0:02:54]}  hxg5 {[%clk 0:02:17]} 10. hxg5 {[%clk 0:02:55]}  Nfd7 {[%clk 0:02:17]} 11. Be3 {[%clk 0:02:55]}  Bg7 {[%clk 0:02:17]} 12. Qd2 {[%clk 0:02:43]}  Ne5 {[%clk 0:02:08]} 13. Qe2 {[%clk 0:02:19]}  c5 {[%clk 0:01:47]} 14. Nb3 {[%clk 0:02:13]}  Nec4 {[%clk 0:01:39]} 15. O-O-O {[%clk 0:02:10]}  Nxb2 {[%clk 0:01:39]} 16. Nb5 {[%clk 0:02:00]}  Nxd1 {[%clk 0:01:37]} 17. Qxd1 {[%clk 0:02:00]}  O-O {[%clk 0:01:25]} 18. Nxd6 {[%clk 0:01:57]}  Na4 {[%clk 0:01:22]} 19. Nxc5 {[%clk 0:01:54]}  Bb2+ {[%clk 0:01:22]} 0-1


[Site "https://www.chess.com"]

[Event "Titled Tuesday Blitz March 08 Early 2022"]
[White "Gabdrakhmanov, Azat"]
[Black "Komiagina, Maria"]
[WhiteFideId "34189197"]
[BlackFideId "4153987"]
[WhiteElo "2279"]
[BlackElo "1945"]
[Result "1-0"]
[Round "04"]
[TimeControl "180+1"]
[Date "2022.03.09"]
[WhiteClock "0:00:23"]
[BlackClock "0:00:10"]

1. e4 {[%clk 0:03:00]}  c5 {[%clk 0:02:58]} 2. Nf3 {[%clk 0:03:00]}  Nc6 {[%clk 0:02:57]} 3. d4 {[%clk 0:02:59]}  cxd4 {[%clk 0:02:57]} 4. Nxd4 {[%clk 0:03:00]}  Nf6 {[%clk 0:02:57]} 5. Nc3 {[%clk 0:03:01]}  d6 {[%clk 0:02:57]} 6. Bg5 {[%clk 0:03:00]}  e6 {[%clk 0:02:55]} 7. Qd2 {[%clk 0:03:00]}  a6 {[%clk 0:02:55]} 8. O-O-O {[%clk 0:02:59]}  h6 {[%clk 0:02:55]} 9. Bxf6 {[%clk 0:02:50]}  Qxf6 {[%clk 0:02:54]} 10. Nb3 {[%clk 0:02:50]}  Qd8 {[%clk 0:02:46]} 11. Kb1 {[%clk 0:02:49]}  Be7 {[%clk 0:02:45]} 12. f4 {[%clk 0:02:48]}  Qc7 {[%clk 0:02:45]} 13. g4 {[%clk 0:02:47]}  b5 {[%clk 0:02:38]} 14. Bd3 {[%clk 0:02:46]}  Bb7 {[%clk 0:02:35]} 15. h4 {[%clk 0:02:42]}  Rc8 {[%clk 0:02:34]} 16. g5 {[%clk 0:02:41]}  b4 {[%clk 0:02:09]} 17. Ne2 {[%clk 0:02:39]}  a5 {[%clk 0:02:09]} 18. g6 {[%clk 0:02:33]}  a4 {[%clk 0:01:49]} 19. gxf7+ {[%clk 0:02:24]}  Kxf7 {[%clk 0:01:48]} 20. Nbd4 {[%clk 0:02:24]}  Nxd4 {[%clk 0:01:43]} 21. Nxd4 {[%clk 0:02:25]}  a3 {[%clk 0:01:26]} 22. f5 {[%clk 0:01:51]}  e5 {[%clk 0:01:22]} 23. Nb5 {[%clk 0:01:39]}  Qc5 {[%clk 0:01:18]} 24. b3 {[%clk 0:01:39]}  d5 {[%clk 0:01:10]} 25. f6 {[%clk 0:01:10]}  Bxf6 {[%clk 0:01:08]} 26. Rhg1 {[%clk 0:01:08]}  Rhd8 {[%clk 0:01:00]} 27. Qg2 {[%clk 0:01:03]}  Kf8 {[%clk 0:00:52]} 28. Rdf1 {[%clk 0:00:56]}  Qe7 {[%clk 0:00:37]} 29. Rxf6+ {[%clk 0:00:47]}  Qxf6 {[%clk 0:00:33]} 30. Rf1 {[%clk 0:00:48]}  dxe4 {[%clk 0:00:29]} 31. Rxf6+ {[%clk 0:00:46]}  gxf6 {[%clk 0:00:29]} 32. Be2 {[%clk 0:00:47]}  Rd2 {[%clk 0:00:24]} 33. Qf1 {[%clk 0:00:46]}  Ke7 {[%clk 0:00:22]} 34. c3 {[%clk 0:00:40]}  Ba6 {[%clk 0:00:19]} 35. Bg4 {[%clk 0:00:24]}  Rcd8 {[%clk 0:00:16]} 36. Qf5 {[%clk 0:00:23]}  Rb2+ {[%clk 0:00:15]} 37. Kc1 {[%clk 0:00:23]}  Bc8 {[%clk 0:00:10]} 38. Qh7+ {[%clk 0:00:23]}  Kf8 {[%clk 0:00:10]} 39. Qh8+ {[%clk 0:00:23]}  Ke7 {[%clk 0:00:10]} 40. Qg7+ {[%clk 0:00:23]} 1-0


[Site "https://www.chess.com"]

[Event "Titled Tuesday Blitz March 08 Early 2022"]
[White "Garv Gaur"]
[Black "Hartikainen, Jarmo"]
[WhiteFideId "45030839"]
[BlackFideId "503134"]
[WhiteElo "1950"]
[BlackElo "2117"]
[Result "1-0"]
[Round "04"]
[TimeControl "180+1"]
[Date "2022.03.09"]
[WhiteClock "0:01:15"]
[BlackClock "0:00:01"]

1. d4 {[%clk 0:02:53]}  Nf6 {[%clk 0:02:59]} 2. Nf3 {[%clk 0:02:53]}  g6 {[%clk 0:02:59]} 3. c4 {[%clk 0:02:54]}  Bg7 {[%clk 0:02:56]} 4. g3 {[%clk 0:02:55]}  d5 {[%clk 0:02:56]} 5. Bg2 {[%clk 0:02:56]}  O-O {[%clk 0:02:56]} 6. cxd5 {[%clk 0:02:56]}  Nxd5 {[%clk 0:02:56]} 7. O-O {[%clk 0:02:56]}  c5 {[%clk 0:02:52]} 8. e4 {[%clk 0:02:46]}  Nf6 {[%clk 0:02:51]} 9. Nc3 {[%clk 0:02:41]}  cxd4 {[%clk 0:02:50]} 10. Nxd4 {[%clk 0:02:40]}  e5 {[%clk 0:02:43]} 11. Ndb5 {[%clk 0:02:38]}  Na6 {[%clk 0:02:10]} 12. Bg5 {[%clk 0:02:22]}  h6 {[%clk 0:01:59]} 13. Bxf6 {[%clk 0:02:20]}  Qxf6 {[%clk 0:01:49]} 14. Nd5 {[%clk 0:02:20]}  Qd8 {[%clk 0:01:32]} 15. Qa4 {[%clk 0:02:10]}  Bd7 {[%clk 0:01:26]} 16. Rad1 {[%clk 0:02:09]}  Qe8 {[%clk 0:01:25]} 17. Ndc3 {[%clk 0:02:08]}  Nc7 {[%clk 0:01:18]} 18. Nxc7 {[%clk 0:02:06]}  Bxa4 {[%clk 0:01:17]} 19. Nxe8 {[%clk 0:02:07]}  Bxe8 {[%clk 0:01:17]} 20. Rd6 {[%clk 0:02:00]}  Bc6 {[%clk 0:01:12]} 21. Rfd1 {[%clk 0:01:59]}  Rfe8 {[%clk 0:01:02]} 22. Nd5 {[%clk 0:01:47]}  Bxd5 {[%clk 0:00:47]} 23. R6xd5 {[%clk 0:01:48]}  Re7 {[%clk 0:00:37]} 24. Bf1 {[%clk 0:01:43]}  Rc8 {[%clk 0:00:33]} 25. b3 {[%clk 0:01:38]}  a6 {[%clk 0:00:32]} 26. Bc4 {[%clk 0:01:34]}  b5 {[%clk 0:00:29]} 27. Rd8+ {[%clk 0:01:33]}  Re8 {[%clk 0:00:28]} 28. Rxe8+ {[%clk 0:01:32]}  Rxe8 {[%clk 0:00:27]} 29. Bd5 {[%clk 0:01:30]}  Rb8 {[%clk 0:00:17]} 30. Rc1 {[%clk 0:01:30]}  Kh7 {[%clk 0:00:08]} 31. Rc7 {[%clk 0:01:28]}  f5 {[%clk 0:00:07]} 32. exf5 {[%clk 0:01:28]}  gxf5 {[%clk 0:00:07]} 33. Be6 {[%clk 0:01:29]}  f4 {[%clk 0:00:07]} 34. Bf5+ {[%clk 0:01:26]}  Kh8 {[%clk 0:00:04]} 35. Kg2 {[%clk 0:01:26]}  Kg8 {[%clk 0:00:03]} 36. Kf3 {[%clk 0:01:25]}  Kf8 {[%clk 0:00:03]} 37. Ke4 {[%clk 0:01:25]}  Rb6 {[%clk 0:00:03]} 38. Kd5 {[%clk 0:01:19]}  Rf6 {[%clk 0:00:02]} 39. g4 {[%clk 0:01:19]}  h5 {[%clk 0:00:02]} 40. h3 {[%clk 0:01:18]}  hxg4 {[%clk 0:00:02]} 41. hxg4 {[%clk 0:01:19]}  Rb6 {[%clk 0:00:02]} 42. f3 {[%clk 0:01:17]}  a5 {[%clk 0:00:01]} 43. Kc5 {[%clk 0:01:16]}  Rf6 {[%clk 0:00:01]} 44. Kxb5 {[%clk 0:01:15]} 1-0


[Site "https://www.chess.com"]

[Event "Titled Tuesday Blitz March 08 Early 2022"]
[White "Gedgafov, Chamal"]
[Black "Qashashvili, Alexandre"]
[WhiteFideId "34130621"]
[BlackFideId "13600842"]
[WhiteElo "2030"]
[BlackElo "2316"]
[Result "1-0"]
[Round "04"]
[TimeControl "180+1"]
[Date "2022.03.09"]
[WhiteClock "0:00:22"]
[BlackClock "0:00:36"]

1. d4 {[%clk 0:02:54]}  d5 {[%clk 0:02:58]} 2. c4 {[%clk 0:02:53]}  c6 {[%clk 0:02:58]} 3. Nc3 {[%clk 0:02:51]}  Nf6 {[%clk 0:02:59]} 4. Nf3 {[%clk 0:02:50]}  Bf5 {[%clk 0:02:54]} 5. cxd5 {[%clk 0:02:49]}  Nxd5 {[%clk 0:02:55]} 6. Qb3 {[%clk 0:02:47]}  Nxc3 {[%clk 0:02:55]} 7. bxc3 {[%clk 0:02:46]}  Qb6 {[%clk 0:02:55]} 8. e3 {[%clk 0:02:43]}  Qxb3 {[%clk 0:02:55]} 9. axb3 {[%clk 0:02:43]}  e6 {[%clk 0:02:56]} 10. Be2 {[%clk 0:02:42]}  Nd7 {[%clk 0:02:56]} 11. Nd2 {[%clk 0:02:24]}  f6 {[%clk 0:02:53]} 12. f3 {[%clk 0:02:24]}  Bd6 {[%clk 0:02:50]} 13. e4 {[%clk 0:02:22]}  Bg6 {[%clk 0:02:50]} 14. O-O {[%clk 0:02:21]}  e5 {[%clk 0:02:50]} 15. Nc4 {[%clk 0:02:12]}  Bc7 {[%clk 0:02:51]} 16. Be3 {[%clk 0:02:09]}  exd4 {[%clk 0:02:49]} 17. cxd4 {[%clk 0:02:09]}  a6 {[%clk 0:02:50]} 18. Na5 {[%clk 0:02:03]}  Bxa5 {[%clk 0:02:50]} 19. Rxa5 {[%clk 0:02:03]}  Bf7 {[%clk 0:02:49]} 20. Bc4 {[%clk 0:01:59]}  Ke7 {[%clk 0:02:39]} 21. Rc1 {[%clk 0:01:51]}  Rhd8 {[%clk 0:02:35]} 22. Kf2 {[%clk 0:01:50]}  Rac8 {[%clk 0:02:30]} 23. Bxf7 {[%clk 0:01:27]}  Kxf7 {[%clk 0:02:29]} 24. Ra2 {[%clk 0:01:23]}  Ke7 {[%clk 0:02:24]} 25. Ke2 {[%clk 0:01:21]}  Ke6 {[%clk 0:02:20]} 26. Rd2 {[%clk 0:01:20]}  h6 {[%clk 0:02:16]} 27. Rdc2 {[%clk 0:01:14]}  Ra8 {[%clk 0:02:15]} 28. g3 {[%clk 0:01:10]}  Re8 {[%clk 0:02:11]} 29. h4 {[%clk 0:01:07]}  Rad8 {[%clk 0:02:02]} 30. h5 {[%clk 0:01:06]}  f5 {[%clk 0:01:56]} 31. Bf4 {[%clk 0:00:49]}  fxe4 {[%clk 0:01:56]} 32. fxe4 {[%clk 0:00:49]}  Nf6 {[%clk 0:01:54]} 33. Be5 {[%clk 0:00:44]}  Nxe4 {[%clk 0:01:49]} 34. Ke3 {[%clk 0:00:41]}  Nxg3 {[%clk 0:01:46]} 35. Bxg3 {[%clk 0:00:39]}  Kf5+ {[%clk 0:01:34]} 36. Be5 {[%clk 0:00:39]}  g5 {[%clk 0:01:33]} 37. Rf1+ {[%clk 0:00:38]}  Kg4 {[%clk 0:01:33]} 38. Rh2 {[%clk 0:00:34]}  c5 {[%clk 0:01:32]} 39. Rg1+ {[%clk 0:00:33]}  Kf5 {[%clk 0:01:33]} 40. Rf2+ {[%clk 0:00:33]}  Ke6 {[%clk 0:01:33]} 41. Rf6+ {[%clk 0:00:33]}  Kd5 {[%clk 0:01:33]} 42. Kd3 {[%clk 0:00:25]}  cxd4 {[%clk 0:01:31]} 43. Bxd4 {[%clk 0:00:25]}  Rd6 {[%clk 0:01:25]} 44. Rgf1 {[%clk 0:00:24]}  Ree6 {[%clk 0:01:23]} 45. Rxe6 {[%clk 0:00:22]}  Rxe6 {[%clk 0:01:24]} 46. Rf6 {[%clk 0:00:22]}  g4 {[%clk 0:01:14]} 47. Rg6 {[%clk 0:00:21]}  Rxg6 {[%clk 0:01:03]} 48. hxg6 {[%clk 0:00:21]}  Ke6 {[%clk 0:01:03]} 49. Ke4 {[%clk 0:00:21]}  h5 {[%clk 0:01:02]} 50. Kf4 {[%clk 0:00:21]}  b6 {[%clk 0:00:47]} 51. Kg5 {[%clk 0:00:21]}  g3 {[%clk 0:00:41]} 52. Kh6 {[%clk 0:00:20]}  g2 {[%clk 0:00:38]} 53. g7 {[%clk 0:00:20]}  Kf7 {[%clk 0:00:37]} 54. Kh7 {[%clk 0:00:20]}  g1=Q {[%clk 0:00:37]} 55. Bxg1 {[%clk 0:00:19]}  Ke6 {[%clk 0:00:37]} 56. g8=Q+ {[%clk 0:00:20]}  Kd6 {[%clk 0:00:37]} 57. Qg5 {[%clk 0:00:20]}  Kc6 {[%clk 0:00:35]} 58. Qxh5 {[%clk 0:00:21]}  a5 {[%clk 0:00:35]} 59. Qg6+ {[%clk 0:00:21]}  Kb5 {[%clk 0:00:36]} 60. Qxb6# {[%clk 0:00:22]} 1-0


[Site "https://www.chess.com"]

[Event "Titled Tuesday Blitz March 08 Early 2022"]
[White "Gheorghiu, Calin"]
[Black "Mohammad Fahad, Rahman"]
[WhiteFideId "1200305"]
[BlackFideId "10207791"]
[WhiteElo "2168"]
[BlackElo "2323"]
[Result "0-1"]
[Round "04"]
[TimeControl "180+1"]
[Date "2022.03.09"]
[WhiteClock "0:00:03"]
[BlackClock "0:00:51"]

1. e4 {[%clk 0:03:00]}  e5 {[%clk 0:03:00]} 2. Nf3 {[%clk 0:02:58]}  Nc6 {[%clk 0:03:00]} 3. d4 {[%clk 0:02:57]}  exd4 {[%clk 0:03:01]} 4. Nxd4 {[%clk 0:02:56]}  Nf6 {[%clk 0:03:02]} 5. Nxc6 {[%clk 0:02:56]}  bxc6 {[%clk 0:03:03]} 6. e5 {[%clk 0:02:56]}  Qe7 {[%clk 0:03:03]} 7. Qe2 {[%clk 0:02:56]}  Nd5 {[%clk 0:03:04]} 8. c4 {[%clk 0:02:56]}  Ba6 {[%clk 0:03:03]} 9. Nd2 {[%clk 0:02:51]}  g6 {[%clk 0:03:02]} 10. Qe4 {[%clk 0:02:50]}  Nb6 {[%clk 0:02:56]} 11. Bd3 {[%clk 0:02:49]}  Bg7 {[%clk 0:02:56]} 12. O-O {[%clk 0:02:47]}  O-O-O {[%clk 0:02:54]} 13. Re1 {[%clk 0:02:40]}  c5 {[%clk 0:02:30]} 14. b4 {[%clk 0:02:20]}  Bb7 {[%clk 0:02:29]} 15. bxc5 {[%clk 0:02:02]}  Bxe4 {[%clk 0:02:27]} 16. Nxe4 {[%clk 0:02:03]}  Na4 {[%clk 0:02:18]} 17. Bg5 {[%clk 0:02:03]}  Qxe5 {[%clk 0:02:18]} 18. Rab1 {[%clk 0:01:48]}  Nxc5 {[%clk 0:02:03]} 19. Nxc5 {[%clk 0:00:48]}  Qxc5 {[%clk 0:02:02]} 20. Be7 {[%clk 0:00:45]}  Qd4 {[%clk 0:01:58]} 21. Rb3 {[%clk 0:00:34]}  Rde8 {[%clk 0:01:55]} 22. c5 {[%clk 0:00:34]}  Qa4 {[%clk 0:01:08]} 23. Reb1 {[%clk 0:00:11]}  d5 {[%clk 0:01:04]} 24. Bb5 {[%clk 0:00:05]}  Qxb3 {[%clk 0:00:54]} 25. Rxb3 {[%clk 0:00:03]}  Rxe7 {[%clk 0:00:54]} 26. c6 {[%clk 0:00:03]}  Re1+ {[%clk 0:00:51]} 0-1


[Site "https://www.chess.com"]

[Event "Titled Tuesday Blitz March 08 Early 2022"]
[White "Hambleton, Aman"]
[Black "Dixit, Nikhil"]
[WhiteFideId "2606577"]
[BlackFideId "5059534"]
[WhiteElo "2552"]
[BlackElo "2223"]
[Result "0-1"]
[Round "04"]
[TimeControl "180+1"]
[Date "2022.03.09"]
[WhiteClock "0:00:01"]
[BlackClock "0:00:08"]

1. d4 {[%clk 0:02:52]}  Nf6 {[%clk 0:02:59]} 2. c4 {[%clk 0:02:50]}  g6 {[%clk 0:02:59]} 3. Nc3 {[%clk 0:02:50]}  Bg7 {[%clk 0:02:59]} 4. e4 {[%clk 0:02:42]}  d6 {[%clk 0:02:59]} 5. Bd3 {[%clk 0:02:33]}  O-O {[%clk 0:02:50]} 6. Nge2 {[%clk 0:02:30]}  e5 {[%clk 0:02:46]} 7. d5 {[%clk 0:02:28]}  Nh5 {[%clk 0:02:45]} 8. O-O {[%clk 0:02:25]}  Nd7 {[%clk 0:02:39]} 9. Be3 {[%clk 0:02:22]}  Nc5 {[%clk 0:02:35]} 10. Bc2 {[%clk 0:02:21]}  Qh4 {[%clk 0:01:34]} 11. Qd2 {[%clk 0:01:53]}  h6 {[%clk 0:01:00]} 12. Bxh6 {[%clk 0:01:09]}  Nf4 {[%clk 0:00:58]} 13. Bxf4 {[%clk 0:00:55]}  exf4 {[%clk 0:00:58]} 14. Qxf4 {[%clk 0:00:56]}  Qh5 {[%clk 0:00:57]} 15. Ng3 {[%clk 0:00:44]}  Qh8 {[%clk 0:00:47]} 16. Qd2 {[%clk 0:00:39]}  Bd7 {[%clk 0:00:43]} 17. Rae1 {[%clk 0:00:26]}  Rae8 {[%clk 0:00:40]} 18. Bb1 {[%clk 0:00:26]}  a6 {[%clk 0:00:26]} 19. Rc1 {[%clk 0:00:20]}  b5 {[%clk 0:00:26]} 20. b4 {[%clk 0:00:18]}  Na4 {[%clk 0:00:23]} 21. Nxa4 {[%clk 0:00:16]}  bxa4 {[%clk 0:00:23]} 22. Qd3 {[%clk 0:00:06]}  Bd4 {[%clk 0:00:22]} 23. Rcd1 {[%clk 0:00:05]}  Ba7 {[%clk 0:00:22]} 24. Bc2 {[%clk 0:00:04]}  Qb2 {[%clk 0:00:21]} 25. Rb1 {[%clk 0:00:02]}  Qf6 {[%clk 0:00:22]} 26. a3 {[%clk 0:00:02]}  Kg7 {[%clk 0:00:22]} 27. Rbe1 {[%clk 0:00:03]}  Rh8 {[%clk 0:00:22]} 28. Qf3 {[%clk 0:00:03]}  Qh4 {[%clk 0:00:22]} 29. h3 {[%clk 0:00:03]}  Rh7 {[%clk 0:00:20]} 30. Rc1 {[%clk 0:00:02]}  Bxh3 {[%clk 0:00:19]} 31. gxh3 {[%clk 0:00:02]}  Qxh3 {[%clk 0:00:20]} 32. Qg2 {[%clk 0:00:03]}  Qd7 {[%clk 0:00:16]} 33. Bd3 {[%clk 0:00:03]}  Reh8 {[%clk 0:00:16]} 34. c5 {[%clk 0:00:03]}  a5 {[%clk 0:00:11]} 35. Bc4 {[%clk 0:00:01]}  axb4 {[%clk 0:00:11]} 36. axb4 {[%clk 0:00:01]}  dxc5 {[%clk 0:00:11]} 37. bxc5 {[%clk 0:00:01]}  Bxc5 {[%clk 0:00:12]} 38. Nf5+ {[%clk 0:00:01]}  Kf8 {[%clk 0:00:10]} 39. Ba2 {[%clk 0:00:01]}  gxf5 {[%clk 0:00:10]} 40. Rxc5 {[%clk 0:00:01]}  Rg7 {[%clk 0:00:10]} 41. Qxg7+ {[%clk 0:00:02]}  Kxg7 {[%clk 0:00:11]} 42. Rc3 {[%clk 0:00:02]}  fxe4 {[%clk 0:00:11]} 43. Rg3+ {[%clk 0:00:03]}  Kf8 {[%clk 0:00:11]} 44. Rb1 {[%clk 0:00:03]}  Ke7 {[%clk 0:00:10]} 45. Rb4 {[%clk 0:00:03]}  Qf5 {[%clk 0:00:09]} 46. Bb1 {[%clk 0:00:02]}  Qh5 {[%clk 0:00:09]} 47. Bxe4 {[%clk 0:00:01]}  Qh4 {[%clk 0:00:09]} 48. Kf1 {[%clk 0:00:01]}  Qh2 {[%clk 0:00:09]} 49. d6+ {[%clk 0:00:02]}  cxd6 {[%clk 0:00:09]} 50. Rb7+ {[%clk 0:00:01]}  Ke6 {[%clk 0:00:09]} 51. Rb5 {[%clk 0:00:02]}  a3 {[%clk 0:00:09]} 52. Bd5+ {[%clk 0:00:03]}  Ke7 {[%clk 0:00:09]} 53. Rb7+ {[%clk 0:00:03]}  Kf6 {[%clk 0:00:09]} 54. Rxf7+ {[%clk 0:00:03]}  Ke5 {[%clk 0:00:09]} 55. Rg5+ {[%clk 0:00:04]}  Kd4 {[%clk 0:00:10]} 56. Bf3 {[%clk 0:00:03]}  a2 {[%clk 0:00:09]} 57. Rg4+ {[%clk 0:00:02]}  Kc3 {[%clk 0:00:09]} 58. Rc7+ {[%clk 0:00:02]}  Kb2 {[%clk 0:00:09]} 59. Rb4+ {[%clk 0:00:02]}  Ka3 {[%clk 0:00:09]} 60. Rcb7 {[%clk 0:00:01]}  a1=Q+ {[%clk 0:00:09]} 61. Ke2 {[%clk 0:00:01]}  Qhe5+ {[%clk 0:00:08]} 62. Be4 {[%clk 0:00:01]}  Qa2+ {[%clk 0:00:08]} 0-1


[Site "https://www.chess.com"]